fUST/lending_fUST_20251214
["ID","MTS","AMOUNT","RATE_DAILY","PERIOD"]
[398452535,1765666248278,-1948.96,0.00021917,2]
[398452536,1765666248288,-703.05,0.00021917,2]
[398452537,1765666248298,-500.0,0.00021917,2]
[398452538,1765666248308,-500.0,0.00021917,2]
[398452539,1765666248319,-1065.88416779,0.00021917,2]
[398452540,1765666248334,-632.31800517,0.00021917,2]
[398452541,1765666248377,-181.43460505,0.00013698,2]
[398452542,1765666248387,-500.0,0.00013698,2]
[398452543,1765666248397,-1093.89782704,0.00021917,2]
[398452544,1765666248407,-504.6867541,0.00021917,2]
[398452545,1765666248417,-500.0,0.00021917,2]
[398452546,1765666248427,-500.0,0.00021917,2]
[398452547,1765666248437,-500.0,0.00021917,2]
[398452548,1765666248447,-19.99325881,0.00021917,2]
[398452549,1765666249183,-317.9235118,0.00013698,2]
[398452550,1765666249194,-182.0764882,0.00013698,2]
[398452551,1765666249204,-500.0,0.00013698,2]
[398452552,1765666249214,-171.29787134,0.00013698,2]
[398452553,1765666249229,-328.70212866,0.00013698,2]
[398452554,1765666249239,-500.0,0.00013698,2]
[398452555,1765666249249,-285.01011679,0.00015753,2]
[398452556,1765666249258,-285.01011679,0.00016158,2]
[398452557,1765666249269,-285.29512691,0.00016562,2]
[398452558,1765666249279,-802.45674119,0.00021917,2]
[398452559,1765666249289,-500.0,0.00021917,2]
[398452560,1765666249300,-500.0,0.00021917,2]
[398452561,1765666249310,-2186.66,0.00021917,2]
[398452562,1765666249319,-1316.19,0.00021917,2]
[398452563,1765666249328,-1193.16191328,0.00021917,2]
[398452564,1765666250248,-360.69996,0.00021917,2]
[398452565,1765666250386,-397.24812672,0.00021917,2]
[398452566,1765666250395,-500.0,0.00021917,2]
[398452567,1765666250405,-51.53475105,0.00021917,2]
[398452568,1765666250416,-698.83524895,0.00021917,2]
[398452569,1765666250426,-500.0,0.00021917,2]
[398452570,1765666250436,-4023.99,0.00021917,2]
[398452571,1765666250445,-500.0,0.00021917,2]
[398452572,1765666250455,-500.0,0.00021917,2]
[398452573,1765666250464,-500.0,0.00021917,2]
[398452574,1765666250474,-3055.79305395,0.00021917,2]
[398452575,1765666250596,-689.620555,0.0002112,2]
[398452576,1765666250606,-262.56694605,0.00021917,2]
[398452577,1765666250615,-277.85591901,0.00021917,2]
[398452578,1765666250630,-222.14408099,0.00021917,2]
[398452579,1765666250639,-500.0,0.00021917,2]
[398452580,1765666250649,-376.27631901,0.00021917,2]
[398452581,1765666262216,153.62,0.000134,2]
[398452582,1765666264699,153.6,0.00013417,2]
[398452583,1765666324533,153.62,0.000134,2]
[398452584,1765666385406,153.62,0.000134,2]
[398452593,1765666443899,153.62,0.000134,2]
[398452595,1765666504347,153.62,0.000134,2]
[398452597,1765666563094,500.0,0.00013273,2]
[398452600,1765666743228,498.64606067,0.00013273,2]
[398452604,1765667009080,999.0,0.00012716,2]
[398452609,1765667102239,168.33,0.000134,2]
[398452610,1765667162103,156.12,0.000134,2]
[398452611,1765667201122,-156.12,0.000136,2]
[398452612,1765667201143,-157.60046547,0.00013645,2]
[398452613,1765667224579,156.11,0.000134,2]
[398452614,1765667226083,-342.39953453,0.00013645,2]
[398452615,1765667226099,-320.8065565,0.00013645,2]
[398452616,1765667226116,-432.22641563,0.00013645,2]
[398452617,1765667233084,-300.0,0.00013644,2]
[398452618,1765667233106,-181.77358437,0.00013645,2]
[398452619,1765667233126,-634.0,0.00013645,2]
[398452620,1765667233148,-500.0,0.00013645,2]
[398452621,1765667233168,-500.0,0.00013645,2]
[398452622,1765667233190,-500.0,0.00013645,2]
[398452623,1765667233210,-500.0,0.00013645,2]
[398452624,1765667233229,-500.0,0.00013645,2]
[398452625,1765667233250,-500.0,0.00013645,2]
[398452626,1765667233277,-500.0,0.00013645,2]
[398452627,1765667233307,-500.0,0.00013645,2]
[398452628,1765667233329,-447.89750724,0.00013645,2]
[398452629,1765667233350,-500.0,0.00013645,2]
[398452630,1765667233372,-500.0,0.00013645,2]
[398452631,1765667233396,-500.0,0.00013645,2]
[398452632,1765667233416,-500.0,0.00013645,2]
[398452633,1765667233438,-604.98862171,0.00013645,2]
[398452634,1765667233460,-196.49000481,0.00013645,2]
[398452635,1765667233482,-500.0,0.00013645,2]
[398452636,1765667233503,-500.0,0.00013645,2]
[398452637,1765667233526,-500.0,0.00013645,2]
[398452638,1765667233546,-500.0,0.00013645,2]
[398452639,1765667233568,-500.0,0.00013645,2]
[398452640,1765667233591,-500.0,0.00013645,2]
[398452641,1765667233615,-500.0,0.00013645,2]
[398452642,1765667233637,-568.43656001,0.00013645,2]
[398452643,1765667233659,-500.0,0.00013645,2]
[398452644,1765667233681,-500.0,0.00013645,2]
[398452645,1765667233702,-500.0,0.00013645,2]
[398452646,1765667233724,-500.0,0.00013645,2]
[398452647,1765667233746,-500.0,0.00013645,2]
[398452648,1765667233768,-500.0,0.00013645,2]
[398452649,1765667233790,-500.0,0.00013645,2]
[398452650,1765667233810,-500.0,0.00013645,2]
[398452651,1765667233832,-500.0,0.00013645,2]
[398452652,1765667233852,-500.0,0.00013645,2]
[398452653,1765667233874,-500.0,0.00013645,2]
[398452654,1765667233896,-500.0,0.00013645,2]
[398452655,1765667233920,-500.0,0.00013645,2]
[398452656,1765667233942,-500.0,0.00013645,2]
[398452657,1765667233964,-500.0,0.00013645,2]
[398452658,1765667233985,-500.0,0.00013645,2]
[398452659,1765667234007,-500.0,0.00013645,2]
[398452660,1765667234028,-500.0,0.00013645,2]
[398452661,1765667234049,-500.0,0.00013645,2]
[398452662,1765667234070,-500.0,0.00013645,2]
[398452663,1765667234092,-500.0,0.00013645,2]
[398452664,1765667234114,-500.0,0.00013645,2]
[398452665,1765667234135,-500.0,0.00013645,2]
[398452666,1765667234156,-500.0,0.00013645,2]
[398452667,1765667234177,-500.0,0.00013645,2]
[398452668,1765667234198,-500.0,0.00013645,2]
[398452669,1765667234220,-500.0,0.00013645,2]
[398452670,1765667234240,-500.0,0.00013645,2]
[398452671,1765667234261,-500.0,0.00013645,2]
[398452672,1765667234282,-500.0,0.00013645,2]
[398452673,1765667234302,-500.0,0.00013645,2]
[398452674,1765667234324,-500.0,0.00013645,2]
[398452675,1765667234345,-500.0,0.00013645,2]
[398452676,1765667234366,-500.0,0.00013645,2]
[398452677,1765667234388,-272.10498547,0.00013645,2]
[398452678,1765667234409,-500.0,0.00013645,2]
[398452679,1765667234639,-500.0,0.00013645,2]
[398452680,1765667234671,-500.0,0.00013645,2]
[398452681,1765667234694,-500.0,0.00013645,2]
[398452682,1765667234717,-500.0,0.00013645,2]
[398452683,1765667234739,-500.0,0.00013645,2]
[398452684,1765667234760,-500.0,0.00013645,2]
[398452685,1765667234782,-500.0,0.00013645,2]
[398452686,1765667234805,-500.0,0.00013645,2]
[398452687,1765667234827,-500.0,0.00013645,2]
[398452688,1765667234849,-500.0,0.00013645,2]
[398452689,1765667234871,-500.0,0.00013645,2]
[398452690,1765667234892,-500.0,0.00013645,2]
[398452691,1765667234916,-500.0,0.00013645,2]
[398452692,1765667234939,-500.0,0.00013645,2]
[398452693,1765667234961,-500.0,0.00013645,2]
[398452694,1765667234982,-500.0,0.00013645,2]
[398452695,1765667235003,-500.0,0.00013645,2]
[398452696,1765667235027,-500.0,0.00013645,2]
[398452697,1765667235048,-500.0,0.00013645,2]
[398452698,1765667235072,-500.0,0.00013645,2]
[398452699,1765667235094,-500.0,0.00013645,2]
[398452700,1765667235119,-500.0,0.00013645,2]
[398452701,1765667235141,-500.0,0.00013645,2]
[398452702,1765667235163,-500.0,0.00013645,2]
[398452703,1765667235184,-213.02217382,0.00013646,2]
[398452704,1765667235204,-500.0,0.00013646,2]
[398452705,1765667235224,-500.0,0.00013646,2]
[398452706,1765667235246,-500.0,0.00013646,2]
[398452707,1765667235272,-500.0,0.00013646,2]
[398452708,1765667235296,-500.0,0.00013646,2]
[398452709,1765667235317,-264.72444705,0.00013646,2]
[398452710,1765667235339,-500.0,0.00013646,2]
[398452711,1765667235361,-500.0,0.00013646,2]
[398452712,1765667235383,-500.0,0.00013646,2]
[398452713,1765667235408,-500.0,0.00013646,2]
[398452714,1765667235430,-500.0,0.00013646,2]
[398452715,1765667235452,-500.0,0.00013646,2]
[398452716,1765667235474,-546.17228237,0.00013646,2]
[398452717,1765667235495,-11049.36693569,0.00013647,2]
[398452718,1765667284576,156.11,0.000134,2]
[398452723,1765667357086,-400.5542913,0.00013646,2]
[398452724,1765667357108,-466.2766672,0.00013646,2]
[398452725,1765667357128,-285.38184,0.00013646,2]
[398452726,1765667357148,-300.0,0.00013646,2]
[398452727,1765667357169,-500.0,0.00013646,2]
[398452728,1765667357189,-500.0,0.00013646,2]
[398452729,1765667357211,-500.0,0.00013646,2]
[398452730,1765667357233,-231.82772679,0.00013646,2]
[398452731,1765667357253,-500.0,0.00013646,2]
[398452732,1765667357272,-500.0,0.00013646,2]
[398452733,1765667357291,-500.0,0.00013646,2]
[398452734,1765667357310,-213.45250434,0.00013647,2]
[398452735,1765667357329,-76443.70809454,0.00013647,2]
[398452761,1765667432374,-15756.49999994,0.00013647,2]
[398452766,1765667432411,-338.06188861,0.00013647,2]
[398453031,1765667443534,-541.65,0.00013647,2]
[398453034,1765667448926,-6642.10856695,0.00013647,2]
[398453035,1765667448940,-741.06703611,0.00013647,2]
[398453036,1765667448953,-2845.63165485,0.00013647,2]
[398453037,1765667462021,151.54,0.000134,2]
[398453063,1765667523289,500.0,0.00013273,2]
[398453064,1765667525408,151.54,0.000134,2]
[398453066,1765667585476,151.54,0.000134,2]
[398453067,1765667645375,151.54,0.000134,2]
[398453068,1765667704918,151.54,0.000134,2]
[398453070,1765667764559,151.54,0.000134,2]
[398453071,1765667824525,151.54,0.000134,2]
[398453072,1765667884031,151.54,0.000134,2]
[398453073,1765667943572,151.53,0.000134,2]
[398453076,1765668011175,1536.0,0.000134,2]
[398453078,1765668131839,2331.0,0.000134,2]
[398453079,1765668182271,158.54,0.000134,2]
[398453080,1765668219330,176.351188,0.00012774,2]
[398453081,1765668243420,155.79370686,0.00013094,2]
[398453082,1765668251870,2399.0,0.000134,2]
[398453083,1765668302067,162.05,0.000134,2]
[398453084,1765668370894,2471.0,0.000134,2]
[398453085,1765668384638,1264.37436817,0.00012963,3]
[398453090,1765668442129,-300.0,0.00013562,2]
[398453091,1765668442151,-215.41837522,0.0001358,2]
[398453092,1765668442170,-573.69949072,0.00013598,2]
[398453093,1765668443105,-40.30050928,0.00013598,2]
[398453094,1765668443128,-300.0,0.00013645,2]
[398453095,1765668443152,-500.0,0.00013646,2]
[398453096,1765668443174,-211.02630224,0.00013646,2]
[398453097,1765668443194,-236.35233984,0.00013646,2]
[398453098,1765668443217,-206.34291011,0.00013646,2]
[398453099,1765668449081,-293.65708989,0.00013646,2]
[398453100,1765668449101,-90.6739139,0.00013646,2]
[398453101,1765668484024,500.0,0.00013273,2]
[398453102,1765668484243,1263.0,0.000134,2]
[398453104,1765668502367,288.38603983,0.0001,2]
[398453105,1765668511627,1000.0,0.0001,2]
[398453106,1765668518000,15030.61359194,0.0001,2]
[398453107,1765668518898,2912.20303591,0.0001,2]
[398453108,1765668522266,1762.06706045,8.9e-05,2]
[398453121,1765668631634,-348.88598364,0.00013646,2]
[398453122,1765668631643,-529.19435675,0.00013646,2]
[398453123,1765668631657,-84.80564325,0.00013646,2]
[398453124,1765668631666,-211.11000772,0.00013647,2]
[398453125,1765668631675,-19710.38547827,0.00013647,2]
[398453126,1765668631699,-12843.08222998,0.00013647,2]
[398453242,1765668637960,-397.54104496,0.00013647,2]
[398453244,1765668637979,-2690.8970701,0.00013647,2]
[398453245,1765668637988,-500.0,0.00013698,2]
[398453246,1765668637997,-629.89626879,0.00013698,2]
[398453247,1765668638006,-500.0,0.00013698,2]
[398453248,1765668638015,-500.0,0.00013698,2]
[398453249,1765668638025,-2939.4030599,0.00013698,2]
[398453250,1765668638036,-21.47738792,0.00013698,2]
[398453251,1765668638046,-300.0,0.00013699,3]
[398453252,1765668638056,-323.736636,0.00013699,2]
[398453253,1765668638066,-259.462915,0.00013699,2]
[398453254,1765668638076,-75.60201612,0.00013699,2]
[398453265,1765668640066,-424.39798388,0.00013699,2]
[398453266,1765668640075,-500.0,0.00013699,2]
[398453267,1765668640085,-127.4512782,0.00013699,2]
[398453270,1765668643042,-372.5487218,0.00013699,2]
[398453271,1765668643051,-315.63984811,0.00013699,2]
[398453272,1765668643060,-500.0,0.00013699,2]
[398453273,1765668643072,-269.12855433,0.0001375,2]
[398453275,1765668643081,-500.0,0.0001375,2]
[398453277,1765668643090,-500.0,0.0001375,2]
[398453279,1765668643099,-385.30711294,0.0001375,2]
[398453281,1765668643108,-500.0,0.0001375,2]
[398453283,1765668643117,-500.0,0.0001375,2]
[398453284,1765668643125,-161.9022239,0.00013752,2]
[398453285,1765668643135,-300.0,0.00013971,2]
[398453286,1765668643143,-300.0,0.00013971,2]
[398453287,1765668643152,-300.0,0.00013971,2]
[398453288,1765668643161,-300.0,0.00013971,2]
[398453289,1765668643172,-300.0,0.00013971,2]
[398453290,1765668643181,-300.0,0.00013971,2]
[398453291,1765668643190,-300.0,0.00013971,2]
[398453292,1765668643199,-300.0,0.00013971,2]
[398453293,1765668643207,-300.0,0.00013971,2]
[398453294,1765668643216,-300.0,0.00013971,2]
[398453295,1765668643225,-300.0,0.00013971,2]
[398453296,1765668643234,-300.0,0.00013971,2]
[398453297,1765668643244,-300.0,0.00013971,2]
[398453298,1765668643254,-300.0,0.00013971,2]
[398453299,1765668643263,-300.0,0.00013971,2]
[398453300,1765668643272,-284.84269995,0.00014247,2]
[398453301,1765668643280,-500.8300558,0.00014247,2]
[398453302,1765668643290,-500.0,0.00014247,2]
[398453303,1765668643299,-500.0,0.00014247,2]
[398453304,1765668643308,-600.0,0.00014249,2]
[398453305,1765668643317,-15109.80078317,0.00015,7]
[398453317,1765668646632,-233.58921683,0.00015,7]
[398453318,1765668646642,-195.499974,0.00015068,2]
[398453319,1765668646652,-249.10980911,0.00015647,2]
[398453320,1765668646663,-720.0,0.00015674,2]
[398453321,1765668646672,-208.31784489,0.00015693,2]
[398453322,1765668646682,-1550.50315517,0.000159,2]
[398453323,1765668663091,153.03,0.000134,2]
[398453324,1765668663419,153.03,0.000134,2]
[398453325,1765668673840,-153.03,0.000135,2]
[398453326,1765668673864,-153.03,0.000135,2]
[398453327,1765668673889,-153.03,0.000135,2]
[398453328,1765668673914,-85.14365671,0.000135,2]
[398453329,1765668729908,155.48,0.000134,2]
[398453330,1765668730237,155.48,0.000134,2]
[398453332,1765668733923,-155.48,0.000135,2]
[398453333,1765668733952,-155.48,0.000135,2]
[398453334,1765668733979,-95.96170384,0.000135,2]
[398453335,1765668738759,155.4,0.00013417,2]
[398453339,1765668790389,152.51,0.000134,2]
[398453340,1765668790657,152.51,0.000134,2]
[398453341,1765668800031,152.43,0.00013417,2]
[398453342,1765668800989,-152.51,0.000135,2]
[398453343,1765668801014,-149.42470107,0.000135,2]
[398453344,1765668848588,152.7,0.000134,2]
[398453345,1765668853580,-152.7,0.000135,2]
[398453346,1765668853608,-11.99065322,0.000135,2]
[398453347,1765668856685,-140.70934678,0.000135,2]
[398453348,1765668856709,-25.3293388,0.000135,2]
[398453349,1765668907793,150.76,0.000134,2]
[398453350,1765668913944,-150.76,0.000135,2]
[398453351,1765668913968,-111.53759053,0.000135,2]
[398453353,1765668967384,154.68,0.000134,2]
[398453354,1765668973226,-154.68,0.000135,2]
[398453355,1765668973252,-76.15819133,0.000135,2]
[398453356,1765669029603,165.89,0.000134,2]
[398453357,1765669034439,-153.68,0.000135,2]
[398453358,1765669083359,500.0,0.00013273,2]
[398453359,1765669085001,168.33,0.000134,2]
[398453360,1765669086445,500.0,0.00013273,2]
[398453361,1765669143570,500.0,0.00013273,2]
[398453362,1765669145295,168.34,0.000134,2]
[398453363,1765669147039,168.32,0.00013417,2]
[398453366,1765669203862,168.34,0.000134,2]
[398453367,1765669203990,500.0,0.00013273,2]
[398453368,1765669205090,500.0,0.00013273,2]
[398453369,1765669229807,20054.6810797,0.00012642,2]
[398453370,1765669263757,168.34,0.00012,2]
[398453373,1765669443940,500.0,0.00013273,2]
[398453374,1765669452070,1536.0,0.000134,2]
[398453375,1765669502398,223.93,0.00012,2]
[398453376,1765669519859,500.0,0.00013273,2]
[398453379,1765669563868,500.0,0.00013273,2]
[398453380,1765669564283,157.28,0.00012,2]
[398453381,1765669564569,157.28,0.000121,2]
[398453382,1765669564879,157.28,0.000122,2]
[398453383,1765669565165,157.28,0.000123,2]
[398453384,1765669565502,157.28,0.000124,2]
[398453385,1765669565862,157.28,0.000125,2]
[398453386,1765669566148,157.28,0.000126,2]
[398453387,1765669566445,157.28,0.000127,2]
[398453388,1765669566752,157.28,0.000128,2]
[398453389,1765669567152,157.28,0.000129,2]
[398453390,1765669567497,157.28,0.000131,2]
[398453391,1765669567829,157.28,0.000132,2]
[398453392,1765669568127,157.28,0.000133,2]
[398453393,1765669568427,157.28,0.000134,2]
[398453394,1765669570985,2331.0,0.000134,2]
[398453395,1765669571756,157.2,0.00012,2]
[398453396,1765669589777,457.96658946,0.00013273,2]
[398453397,1765669624754,157.28,0.00012,2]
[398453398,1765669625056,157.28,0.000125,2]
[398453399,1765669625342,157.28,0.00013,2]
[398453400,1765669637070,500.0,0.00013273,2]
[398453401,1765669638079,500.0,0.00013273,2]
[398453402,1765669640124,-157.28,0.000135,2]
[398453403,1765669640144,-79.49682547,0.00013525,2]
[398453404,1765669640697,500.0,0.00013273,2]
[398453405,1765669683730,157.28,0.00012,2]
[398453406,1765669690956,2399.0,0.000134,2]
[398453407,1765669811077,2471.0,0.000134,2]
[398453444,1765669831846,-144.38293699,0.00013525,2]
[398453446,1765669831855,-539.15395029,0.00013525,2]
[398453464,1765669832062,-72.84604971,0.00013525,2]
[398453466,1765669832071,-155.76765217,0.00013598,2]
[398453468,1765669832080,-151.0,0.00013626,2]
[398453470,1765669832089,-151.0,0.00013626,2]
[398453472,1765669832099,-151.0,0.00013626,2]
[398453474,1765669832108,-124.5860663,0.00013626,2]
[398453563,1765669837896,-26.4139337,0.00013626,2]
[398453564,1765669837905,-151.0,0.00013626,2]
[398453565,1765669837914,-151.0,0.00013626,2]
[398453566,1765669837925,-271.47118896,0.00013626,2]
[398453567,1765669837934,-300.25543841,0.0001363,3]
[398453568,1765669837943,-530.79130109,0.00013631,2]
[398453569,1765669837952,-500.0,0.00013631,2]
[398453570,1765669837961,-500.0,0.00013631,2]
[398453571,1765669837970,-500.0,0.00013631,2]
[398453572,1765669837979,-500.0,0.00013631,2]
[398453573,1765669837988,-500.0,0.00013631,2]
[398453574,1765669837997,-500.0,0.00013631,2]
[398453575,1765669838006,-213.4948671,0.00013631,2]
[398453576,1765669838015,-500.0,0.00013631,2]
[398453577,1765669838024,-500.0,0.00013631,2]
[398453578,1765669838033,-500.0,0.00013631,2]
[398453579,1765669838042,-500.0,0.00013631,2]
[398453580,1765669838051,-500.0,0.00013631,2]
[398453581,1765669838060,-500.0,0.00013631,2]
[398453582,1765669838070,-500.0,0.00013631,2]
[398453583,1765669838078,-500.0,0.00013631,2]
[398453584,1765669838087,-500.0,0.00013631,2]
[398453585,1765669838097,-254.08807104,0.00013631,2]
[398453586,1765669838106,-500.0,0.00013631,2]
[398453587,1765669838115,-500.0,0.00013631,2]
[398453588,1765669838125,-500.0,0.00013631,2]
[398453589,1765669838134,-500.0,0.00013631,2]
[398453590,1765669838143,-500.0,0.00013631,2]
[398453591,1765669838153,-500.0,0.00013631,2]
[398453592,1765669838162,-396.97541787,0.00013631,2]
[398453593,1765669838171,-500.0,0.00013631,2]
[398453594,1765669838181,-500.0,0.00013631,2]
[398453595,1765669838190,-500.0,0.00013631,2]
[398453596,1765669838199,-500.0,0.00013631,2]
[398453597,1765669838208,-500.0,0.00013631,2]
[398453598,1765669838217,-500.0,0.00013631,2]
[398453599,1765669838227,-500.0,0.00013631,2]
[398453600,1765669838237,-500.0,0.00013631,2]
[398453601,1765669838246,-346.7544527,0.00013631,2]
[398453602,1765669838256,-500.0,0.00013631,2]
[398453603,1765669838265,-500.0,0.00013631,2]
[398453604,1765669838275,-500.0,0.00013631,2]
[398453605,1765669838284,-500.0,0.00013631,2]
[398453606,1765669838294,-389.87448538,0.00013631,2]
[398453607,1765669838306,-110.12551462,0.00013631,2]
[398453608,1765669838315,-500.0,0.00013631,2]
[398453609,1765669838325,-500.0,0.00013631,2]
[398453610,1765669838335,-55.64254089,0.00013631,2]
[398453611,1765669838347,-444.35745911,0.00013631,2]
[398453612,1765669838361,-162.69453435,0.00013631,2]
[398453613,1765669838373,-337.30546565,0.00013631,2]
[398453614,1765669838382,-500.0,0.00013631,2]
[398453615,1765669838391,-500.0,0.00013631,2]
[398453616,1765669838401,-500.0,0.00013631,2]
[398453617,1765669838410,-400.0,0.00013631,2]
[398453618,1765669838419,-500.0,0.00013631,2]
[398453619,1765669838428,-500.0,0.00013631,2]
[398453620,1765669838438,-500.0,0.00013631,2]
[398453621,1765669838448,-500.0,0.00013631,2]
[398453622,1765669838458,-500.0,0.00013631,2]
[398453623,1765669838468,-195.0,0.00013631,2]
[398453624,1765669838478,-300.0,0.00013631,2]
[398453625,1765669838488,-300.0,0.00013631,2]
[398453626,1765669838498,-1200.0,0.00013631,2]
[398453627,1765669838508,-1200.0,0.00013632,2]
[398453628,1765669838517,-236.61727461,0.00013633,2]
[398453629,1765669838527,-29902.39918501,0.00013633,2]
[398453630,1765669838537,-500.0,0.00013645,2]
[398453631,1765669838547,-300.0,0.00013673,2]
[398453632,1765669838556,-500.0,0.00013698,2]
[398453633,1765669838566,-500.0,0.00013698,2]
[398453634,1765669838576,-500.0,0.00013698,2]
[398453635,1765669838586,-500.0,0.00013698,2]
[398453636,1765669838595,-500.0,0.00013698,2]
[398453637,1765669838605,-500.0,0.00013698,2]
[398453638,1765669838615,-500.0,0.00013698,2]
[398453639,1765669838625,-500.0,0.00013698,2]
[398453640,1765669838635,-500.0,0.00013698,2]
[398453641,1765669838644,-500.0,0.00013698,2]
[398453642,1765669838654,-500.0,0.00013698,2]
[398453643,1765669838664,-500.0,0.00013698,2]
[398453644,1765669838674,-500.0,0.00013698,2]
[398453645,1765669838685,-500.0,0.00013698,2]
[398453646,1765669838695,-500.0,0.00013698,2]
[398453647,1765669838704,-500.0,0.00013698,2]
[398453648,1765669838714,-500.0,0.00013698,2]
[398453649,1765669838723,-500.0,0.00013698,2]
[398453650,1765669838733,-500.0,0.00013698,2]
[398453651,1765669838742,-500.0,0.00013698,2]
[398453652,1765669838751,-500.0,0.00013698,2]
[398453653,1765669838760,-500.0,0.00013698,2]
[398453654,1765669838770,-500.0,0.00013698,2]
[398453655,1765669838779,-359.07207523,0.00013698,2]
[398453656,1765669838792,-500.0,0.00013698,2]
[398453657,1765669838801,-500.0,0.00013698,2]
[398453658,1765669838810,-500.0,0.00013698,2]
[398453659,1765669838819,-500.0,0.00013698,2]
[398453660,1765669838831,-500.0,0.00013698,2]
[398453661,1765669838842,-1000.0,0.00013699,2]
[398453662,1765669838852,-159.83026529,0.00013699,2]
[398453663,1765669838861,-564.41208309,0.00013699,2]
[398453664,1765669838870,-500.0,0.00013699,2]
[398453665,1765669838881,-500.0,0.00013699,2]
[398453666,1765669838891,-500.0,0.00013699,2]
[398453667,1765669838900,-500.0,0.00013699,2]
[398453668,1765669838909,-500.0,0.00013699,2]
[398453669,1765669838919,-500.0,0.00013699,2]
[398453670,1765669838928,-500.0,0.00013699,2]
[398453671,1765669838938,-500.0,0.00013699,2]
[398453672,1765669838947,-500.38776688,0.00013699,2]
[398453673,1765669838957,-500.0,0.00013699,2]
[398453674,1765669838967,-500.0,0.00013699,2]
[398453675,1765669838976,-501.24825546,0.00013699,2]
[398453676,1765669838985,-500.0,0.00013699,2]
[398453677,1765669838995,-500.0,0.00013699,2]
[398453678,1765669839004,-500.0,0.00013699,2]
[398453679,1765669839014,-500.0,0.00013699,2]
[398453680,1765669839024,-501.41051891,0.00013699,2]
[398453681,1765669839033,-503.67438749,0.00013699,2]
[398453682,1765669839043,-295.86336359,0.00013699,2]
[398453683,1765669839052,-500.0,0.00013699,2]
[398453684,1765669839062,-500.0,0.00013699,2]
[398453685,1765669839072,-159.43456874,0.00013699,2]
[398453686,1765669839081,-500.0,0.00013699,2]
[398453687,1765669839090,-164.70025454,0.00013699,2]
[398453688,1765669839100,-500.67743654,0.00013699,2]
[398453689,1765669839110,-500.0,0.00013699,2]
[398453690,1765669839119,-303.30969186,0.00013699,2]
[398453691,1765669839130,-502.31467733,0.00013699,2]
[398453692,1765669839140,-500.0,0.00013699,2]
[398453693,1765669839149,-500.0,0.00013699,2]
[398453694,1765669839159,-500.0,0.00013699,2]
[398453695,1765669839168,-500.0,0.00013699,2]
[398453696,1765669839178,-160.81223571,0.00013699,2]
[398453697,1765669839187,-500.0,0.00013699,2]
[398453698,1765669839197,-415.91655572,0.00013699,2]
[398453699,1765669839207,-220.08567231,0.00013699,2]
[398453700,1765669839217,-500.0,0.00013699,2]
[398453701,1765669839228,-500.0,0.00013699,2]